[Event "Slovakia Open 2022"]
[Site "Bratislava"]
[Date "2022.10.02"]
[Round "8.12"]
[White "Mizicka, Matus"]
[Black "Pasti, Aron"]
[Result "0-1"]
[ECO "A01"]
[WhiteElo "1975"]
[BlackElo "2350"]
[Annotator "TA"]
[PlyCount "146"]
[EventDate "2022.09.30"]
[EventCountry "SVK"]
[SourceTitle "playchess.com"]
[Source "ChessBase"]
[SourceQuality "1"]
[TimeControl "2700+10"]

{[%evp 9,146,-16,-3,-22,-16,-33,8,8,76,-15,76,-15,-6,-25,0,-72,-65,-106,-109,-112,120,120,107,112,105,114,124,113,151,-24,-31,-130,-144,-238,-240,-237,-235,-200,-184,-158,-156,-150,-74,-74,-74,-74,-74,-74,-27,-29,67,60,50,-15,-14,0,120,0,0,0,35,3,0,6,142,0,0,-204,-205,-434,-233,-233,-201,-192,-206,-210,-39,-83,-83,-83,-83,-129,-127,-217,-214,-219,-189,-241,-220,-281,-281,-262,-184,-435,-435,-411,-379,-371,-371,-356,-356,-1591,-1555,-29966,-29966,-29965,-29966,-29964,-29963,-29967,-29964,-29963,-29964,-29962,-29965,-29971,-29971,-29973,-29974,-29974,-29974,-29974,-29975,-29976,-29976,-29976,-29977,-29977,-29978,-29978,-29979,-29983,-29984,-29984,-29984,-29985,-29986,-29990,-29988]} 1. b3 {[%emt 0:00:08]} c5 {[%emt 0:00:09]} 2. Bb2 {[%emt 0:00:02]} Nc6 {[%emt 0:00:01]} 3. g3 {[%emt 0:00:03]} d5 {[%emt 0:00:09]} 4. Bg2 {[%emt 0:00:02]} Bf5 {[%emt 0:00:03]} 5. d3 {[%emt 0:00:02]} Nf6 {[%emt 0:00:06]} 6. Nd2 {[%emt 0:00:03] A01: Nimzowitsch-Larsen Opening.} e5 {[%emt 0:00:09]} 7. e4 {[%emt 0:00:26] [#]} Bg6 $146 {[%emt 0:00:08]} ({Predecessor:} 7... dxe4 8. dxe4 Be6 9. Ngf3 Qc7 10. O-O Be7 11. Nc4 Rd8 12. Qb1 Bxc4 13. bxc4 O-O {0-1 (44) Nepomniachtchi,I (2789)-Giri,A (2776) chess24.com INT 2021}) 8. Ne2 {[%emt 0:00:13] The position is equal.} h5 {[%emt 0:00:07]} (8... d4 $11) 9. h4 {[%emt 0:00:08]} (9. exd5 $16 Nxd5 10. O-O) 9... Be7 {[%emt 0:00:37]} (9... d4 $11) 10. O-O {[%emt 0:00:06]} (10. exd5 $16 Nxd5 11. O-O) 10... d4 $11 {[%emt 0:00:09]} 11. a4 {[%emt 0:00:30]} a6 {[%emt 0:00:05]} 12. f4 {[%emt 0:00:50]} (12. Bh3 $11) 12... Ng4 $17 {[%emt 0:00:05]} 13. Qc1 {[%emt 0:00:59]} Ne3 {[%emt 0:00:30]} 14. Rf3 {[%emt 0:01:03]} Nb4 $2 {[%emt 0:01:01] [#] Black is much more active. The white rooks are badly placed.} (14... Nxg2 $17 15. Kxg2 f5) 15. Rxe3 $1 $16 {[%emt 0:01:19][%mdl 512]} dxe3 {[%emt 0:00:05]} 16. Nc4 {[%emt 0:00:01]} exf4 {[%emt 0:09:03]} 17. Nxf4 {[%emt 0:04:48] Pair of Knights!} O-O {[%emt 0:00:02]} 18. Nxe3 {[%emt 0:02:18]} Re8 {[%emt 0:00:05]} 19. Nfd5 $2 {[%emt 0:01:05]} (19. e5 $1 $16) 19... Bd6 $11 {[%emt 0:00:20]} 20. Nxb4 {[%emt 0:10:36]} (20. Qe1 $15) 20... cxb4 $17 {[%emt 0:00:49]} 21. Nf1 {[%emt 0:04:18]} (21. Qe1 $17) 21... Rc8 $19 {[%emt 0:01:03]} 22. Qd2 {[%emt 0:02:30]} Bc5+ {[%emt 0:00:57]} 23. Kh2 {[%emt 0:01:23]} Bd4 {[%emt 0:00:01]} 24. Bxd4 {[%emt 0:01:26]} Qxd4 {[%emt 0:00:02]} 25. Re1 {[%emt 0:00:40]} f6 {[%emt 0:05:53]} (25... f5 $142 {[%cal Rf5e4]} 26. exf5 Rxe1 27. Qxe1 Re8) 26. Re2 $17 {[%emt 0:00:34]} Rcd8 {[%emt 0:02:04]} 27. Qf4 {[%emt 0:01:07]} Bf7 {[%emt 0:01:13]} 28. Ne3 {[%emt 0:01:23]} Be6 {[%emt 0:01:57]} (28... a5 $17) 29. Bh3 $11 {[%emt 0:01:51][%cal Bg2h3,Bh3g4,Bg4f3][%mdl 32]} Bxb3 {[%emt 0:00:29]} 30. cxb3 $14 {[%emt 0:03:09]} Qxd3 {[%emt 0:00:04]} 31. Qf3 {[%emt 0:01:32]} (31. Qf2 $14) 31... Qxe4 $11 {[%emt 0:00:59]} 32. Qxh5 {[%emt 0:02:01]} g6 {[%emt 0:01:34] Inhibits Bf5.} (32... Rd5 $1 $11 {keeps the balance.} 33. Qxd5+ (33. Bf5 $2 Rxf5 34. Nxf5 Qxe2+ $19) 33... Qxd5 34. Nxd5 Rxe2+ 35. Bg2 Kf8) 33. Qc5 {[%emt 0:01:11]} ({White has to play} 33. Qh6 $1 $16 Re7 34. Bg2) 33... Qd3 {[%emt 0:05:10]} 34. Bg4 {[%emt 0:00:13]} Qd4 {[%emt 0:02:59]} 35. Qc7 {[%emt 0:02:03][%cal Oh2h3]} f5 {[%emt 0:07:09]} 36. Bf3 {[%emt 0:00:16] Strongly threatening Ng2.} f4 {[%emt 0:00:01] [#]} (36... Rd7 $11 {remains equal.} 37. Qc2 Kf8) 37. gxf4 {[%emt 0:00:19]} (37. Ng4 $1 $16 {[%cal Of3d5] And now Bd5+! would win.} Rxe2+ 38. Bxe2 fxg3+ 39. Kh3) 37... Rd7 $36 {[%emt 0:00:16][%mdl 2048] Inhibits Bd5+. Black fights for an advantage.} 38. Qc4+ {[%emt 0:00:07]} (38. Qc2 $1 $11 {and White stays safe.} Qxf4+ 39. Kg2) 38... Qxc4 $19 {[%emt 0:00:11]} 39. bxc4 {[%emt 0:00:10]} (39. Nxc4 {is the only way for White.} Rxe2+ 40. Bxe2) 39... Rde7 {[%emt 0:00:00]} (39... Rd3 $142 40. Nd5 Rxe2+ 41. Bxe2 Rd2 42. Nxb4 Rxe2+ 43. Kh3 Re4) 40. Bd5+ {[%emt 0:00:17]} Kg7 {[%emt 0:00:13]} 41. Rb2 {[%emt 0:00:02]} Rxe3 {[%emt 0:01:28]} 42. Rxb4 {[%emt 0:00:02][%mdl 4096] Endgame KRR-KRB} R3e7 $2 {[%emt 0:00:15]} ({Inferior is} 42... Re2+ 43. Kh3 $15) ({Better is} 42... Kh6 $19 {Hoping for ...Rc3.} 43. Kg2 (43. Rxb7 $2 Ra3 $19) 43... Rc3) 43. Rb6 {[%emt 0:00:11]} Rf8 {[%emt 0:00:50] Black keeps a firm grip on the game.} 44. Kg3 {[%emt 0:00:04] [#]} Rf6 $1 {[%emt 0:00:02]} 45. Rb3 {[%emt 0:00:09]} ({White should try} 45. Rxb7 Rxb7 46. Bxb7) 45... b6 $17 {[%emt 0:00:03]} 46. Kg4 {[%emt 0:00:17]} (46. a5 $17 bxa5 47. Ra3) 46... Re1 $19 {[%emt 0:00:13]} 47. a5 {[%emt 0:00:25]} bxa5 {[%emt 0:00:04]} 48. Ra3 {[%emt 0:00:01]} (48. c5 {was called for.}) 48... Rg1+ {[%emt 0:00:56]} 49. Kh3 {[%emt 0:00:20]} Rxf4 {[%emt 0:00:52]} 50. Rxa5 {[%emt 0:00:01]} Rc1 {[%emt 0:02:01] aiming for ...Rc3+.} 51. Rxa6 $2 {[%emt 0:00:14]} (51. Kg3 {might work better.} Rd4 52. Ra3) 51... Rc3+ {[%emt 0:00:01]} 52. Kg2 {[%emt 0:00:08]} Rg4+ {[%emt 0:00:04]} 53. Kf2 {[%emt 0:00:03]} Rxh4 {[%emt 0:00:01] Threatens to win with ...Rh2+.} 54. Ra7+ {[%emt 0:00:14]} Kh6 {[%emt 0:00:01] White must now prevent ...Rh2+.} 55. Rc7 $2 {[%emt 0:00:05]} (55. Ra2) 55... Rh2+ {[%emt 0:00:01]} 56. Kg1 {[%emt 0:00:22]} Rb2 {[%emt 0:00:03][%cal Rc3c1] Black mates.} 57. Rf7 {[%emt 0:00:09]} Rc1+ {[%emt 0:00:52]} 58. Rf1 {[%emt 0:00:02]} Rxf1+ {[%emt 0:00:01]} 59. Kxf1 {[%emt 0:00:01] KR-KB} Rc2 {[%emt 0:00:02]} 60. Ke1 {[%emt 0:00:29]} Kg5 {[%emt 0:00:24]} 61. Kd1 {[%emt 0:00:11]} Ra2 {[%emt 0:00:01]} 62. Ke1 {[%emt 0:00:08]} Kf5 {[%emt 0:00:39]} 63. Kf1 {[%emt 0:00:07]} g5 {[%emt 0:00:03][%cal Bg6g5,Bg5g4,Bg4g3][%mdl 32]} 64. Kg1 {[%emt 0:00:06]} Rc2 {[%emt 0:00:01]} 65. Kf1 {[%emt 0:00:02]} Kf4 {[%emt 0:00:01]} 66. Kg1 {[%emt 0:00:25]} Kg3 {[%emt 0:00:02][%cal Rc2c1]} 67. Kf1 {[%emt 0:00:12]} g4 {[%emt 0:00:02]} 68. Ke1 {[%emt 0:00:17]} Kh2 {[%emt 0:00:22]} 69. Kd1 {[%emt 0:00:02]} Ra2 {[%emt 0:00:05]} 70. Ke1 {[%emt 0:00:18]} g3 {[%emt 0:00:04]} 71. c5 {[%emt 0:00:04]} Ra5 {[%emt 0:00:01]} 72. Bf3 {[%emt 0:00:07]} Rxc5 {[%emt 0:00:01]} 73. Kf1 {[%emt 0:00:09]} Rf5 {[%emt 0:00:02] Weighted Error Value: White=0.59/Black=0.32} 0-1

[Event "Slovakia Open 2022"]
[Site "Bratislava"]
[Date "2022.10.02"]
[Round "8.13"]
[White "Nemsak, Denis"]
[Black "Vadila, Ondrej"]
[Result "1-0"]
[ECO "A69"]
[WhiteElo "2012"]
[BlackElo "2178"]
[Annotator "TA"]
[PlyCount "69"]
[EventDate "2022.09.30"]
[EventCountry "SVK"]
[SourceTitle "playchess.com"]
[Source "ChessBase"]
[SourceQuality "1"]
[TimeControl "2700+10"]

{[%evp 22,69,0,0,0,0,30,33,20,0,45,39,37,47,54,24,76,49,119,0,1314,1311,1312,1265,29989,796,792,761,29988,29986,29986,29987,29987,29988,29988,1714,1649,1115,29979,3109,2456,2072,29979,29980,29979,29979,29979,29979,29968,5354]} 1. c4 {[%emt 0:00:05]} Nf6 {[%emt 0:00:02]} 2. Nc3 {[%emt 0:00:02]} g6 {[%emt 0:00:04]} 3. d4 {[%emt 0:00:04]} c5 {[%emt 0:00:16]} 4. d5 {[%emt 0:00:02]} e6 {[%emt 0:00:02]} 5. e4 {[%emt 0:00:02]} d6 {[%emt 0:00:05]} 6. f4 {[%emt 0:00:05]} exd5 {[%emt 0:00:24]} 7. cxd5 {[%emt 0:00:02]} Bg7 {[%emt 0:00:19]} 8. Nf3 {[%emt 0:00:02]} O-O {[%emt 0:00:25]} 9. Be2 {[%emt 0:00:02]} Re8 {[%emt 0:00:35]} 10. e5 {[%emt 0:01:22]} dxe5 {[%emt 0:03:25]} 11. fxe5 {[%emt 0:00:11]} Ng4 {[%emt 0:00:14]} 12. e6 {[%emt 0:01:20]} fxe6 {[%emt 0:00:33] A69: Modern Benoni: Four Pawns Attack with 9...Re8.} 13. d6 {[%emt 0:00:58]} (13. Bg5 $5 {[%cal Rg5d8]} Qb6 14. Qd2 $15 (14. Qa4 Bd7 $17)) 13... a6 {[%emt 0:05:02]} 14. O-O {[%emt 0:00:54]} Bd7 {[%emt 0:07:10] White is slightly better.} 15. Ng5 {[%emt 0:12:13] [#]} Bd4+ $146 {[%emt 0:12:57]} ({Predecessor:} 15... Ne5 16. Be3 b6 17. Qe1 Nbc6 18. Qg3 Nd4 19. Bf4 Nf5 20. Qh3 h6 21. Nf3 Nf7 {½-½ (69) MacDonald,P (2033)-Jackson,L (1928) Auckland 2014}) 16. Kh1 {[%emt 0:00:28] Dancing on a razor blade.} Nf2+ {[%emt 0:00:31] [#]} 17. Rxf2 $1 {[%emt 0:00:03]} Bxf2 {[%emt 0:00:01]} 18. Qb3 {[%emt 0:15:22] And now Nce4 would win.} (18. Nce4 $5 {[%cal Re4f2]} Bd4 19. Qb3 $15 (19. Qf1 Rf8 $17)) 18... Bd4 {[%emt 0:07:13] [#]} 19. Nce4 $36 {[%emt 0:08:48][%mdl 2048] Prevents Qf6. Qh3 is the strong threat. White has good play. Pair of Knights!} h6 {[%emt 0:00:22] [#]} (19... Rf8 $1 $14) 20. Qg3 {[%emt 0:05:50] White has more active pieces.} ({White should play} 20. Qh3 $1 $16 {[%cal Rh3h6]} Bg7 21. Nf3) 20... Nc6 $2 {[%emt 0:02:35][%mdl 8192] [#] Black is now going downhill.} (20... hxg5 $2 21. Bxg5 Bc6 22. Bxd8 Bxe4 23. Bd3 Bxd3 24. Qxd3 $18) (20... Bc6 $11 21. Nxe6 Rxe6) 21. Nf7 $1 $18 {[%emt 0:00:17][%mdl 576] Discovered Attack} Kxf7 {[%emt 0:01:41]} 22. Bxh6 {[%emt 0:00:03] White wants to mate with Rf1+.} Rg8 {[%emt 0:01:53]} 23. Qf4+ {[%emt 0:00:26]} (23. Rf1+ $142 Bf6 24. Nxf6 Rg7 25. Nxd7+ Kg8 26. Nf6+ Kf7 27. Nd7+ Kg8 28. Nf6+ Kf7 29. Nh5+ Ke8 30. Nxg7+ Kd7 31. Rf7+ Kc8 32. Nxe6) 23... Bf6 {[%emt 0:01:12]} 24. Rf1 {[%emt 0:00:07][%cal Re4f6]} e5 {[%emt 0:00:01]} 25. Bc4+ {[%emt 0:00:15]} Be6 {[%emt 0:00:34]} 26. Qxf6+ {[%emt 0:00:00]} Qxf6 {[%emt 0:01:16]} 27. Rxf6+ {[%emt 0:00:09]} Ke8 {[%emt 0:00:10]} 28. Rxe6+ {[%emt 0:00:10]} (28. Bxe6 $142 Nd8 29. Bxg8 Kd7 30. Bd5 Rc8 31. Bg5 c4 32. Rf8 Ne6 33. Rf7+ Ke8 34. Bxe6 Rc7 35. dxc7 b6 36. c8=Q#) 28... Kd8 {[%emt 0:00:10]} 29. Nxc5 {[%emt 0:00:10] White threatens Rf6 and mate.} g5 {[%emt 0:00:10]} 30. Nxb7+ {[%emt 0:00:20]} (30. Rf6 $142 Kc8 31. Bxg8 Kb8 32. Bxg5 Ka7 33. Bd5 Nb4 34. Bxb7 Rd8 35. Re6) 30... Kc8 {[%emt 0:00:08]} 31. Nc5 {[%emt 0:00:05] Hoping for Bd5.} Ra7 {[%emt 0:00:28]} 32. d7+ {[%emt 0:00:20] White mates.} Kc7 {[%emt 0:00:06] [#]} 33. Rxc6+ $1 {[%emt 0:00:06]} Kxc6 {[%emt 0:00:08]} 34. Bxg8 {[%emt 0:00:02]} Ra8 {[%emt 0:00:01]} 35. Bf7 {[%emt 0:00:20] Weighted Error Value: White=0.24 (precise) /Black=1.79} (35. Bh7 $142 Kb5 36. Be4 Rb8 37. Ne6 Kc4 38. Bxg5 a5 39. d8=Q Rxd8 40. Bxd8) 1-0

[Event "Slovakia Open 2022"]
[Site "Bratislava"]
[Date "2022.10.02"]
[Round "8.14"]
[White "Chlpek, Daniel"]
[Black "Meszaros, Casey Ryan"]
[Result "1/2-1/2"]
[ECO "C42"]
[WhiteElo "2020"]
[BlackElo "1925"]
[Annotator "TA"]
[PlyCount "68"]
[EventDate "2022.09.30"]
[EventCountry "SVK"]
[SourceTitle "playchess.com"]
[Source "ChessBase"]
[SourceQuality "1"]
[TimeControl "2700+10"]

{[%evp 16,68,11,18,44,44,44,45,25,37,55,10,6,11,13,0,8,-28,-28,-45,-53,-46,0,-18,-28,-27,0,0,0,-31,-33,-26,0,0,5,0,6,8,33,18,18,16,15,2,2,3,0,0,12,14,19,19,308,292,311]} 1. e4 {[%emt 0:00:11]} e5 {[%emt 0:01:47]} 2. Nf3 {[%emt 0:00:06]} Nc6 {[%emt 0:00:06]} 3. Nc3 {[%emt 0:00:03]} Nf6 {[%emt 0:00:04]} 4. g3 {[%emt 0:00:02]} Bb4 {[%emt 0:00:48]} 5. Bg2 {[%emt 0:00:33]} O-O {[%emt 0:00:11]} 6. O-O {[%emt 0:00:03]} d6 {[%emt 0:00:57]} 7. d3 {[%emt 0:00:06]} h6 {[%emt 0:00:17]} 8. a3 {[%emt 0:00:36]} Bxc3 {[%emt 0:01:01]} 9. bxc3 {[%emt 0:00:02]} d5 {[%emt 0:01:03] C42: Petroff Defence: 3 Nxe5 and unusual White 3rd moves.} 10. exd5 {[%emt 0:00:07]} Nxd5 {[%emt 0:00:16][%cal Bf6d5,Bd5b6,Bb6c4][%mdl 32] [#]} 11. Bb2 $146 {[%emt 0:00:53]} ({Predecessor:} 11. c4 Nb6 12. Re1 f6 13. Nh4 Be6 14. Be3 Qd7 15. Qe2 Rfe8 16. Rab1 Na4 17. Rxb7 {1-0 (62) Larson,M (2223)-Pace,C (2084) Chess.com INT 2015}) 11... Re8 {[%emt 0:04:29] White is slightly better.} 12. Re1 {[%emt 0:00:26] Black must now prevent c4.} Nb6 {[%emt 0:04:49]} 13. Rb1 {[%emt 0:04:33]} Bf5 {[%emt 0:02:54]} 14. c4 {[%emt 0:00:57][%cal Rf3e5]} e4 {[%emt 0:05:45]} 15. Nh4 {[%emt 0:02:51]} Bh7 {[%emt 0:00:41][%cal Re4d3]} 16. dxe4 {[%emt 0:04:26]} Qxd1 {[%emt 0:02:18]} 17. Rbxd1 {[%emt 0:02:08]} Nxc4 {[%emt 0:01:08]} 18. Bc1 {[%emt 0:00:26]} Rad8 {[%emt 0:00:14]} (18... Nd6 $1 $15 {is superior.}) 19. Rxd8 {[%emt 0:07:22]} Rxd8 {[%emt 0:00:12]} 20. Nf5 {[%emt 0:01:08]} Bxf5 {[%emt 0:04:23]} 21. exf5 {[%emt 0:00:03]} Nd4 {[%emt 0:01:13][%csl LRc2,LRf5]} 22. Bxb7 {[%emt 0:04:36]} Nxc2 {[%emt 0:01:10]} 23. Rf1 {[%emt 0:00:01][%cal Of5f6]} N2xa3 {[%emt 0:00:47]} (23... Nd6 $5 {[%cal Rd6b7]} 24. Bg2 Nxf5 $11) 24. Bf4 {[%emt 0:00:20]} Nb5 {[%emt 0:00:44]} 25. Ba6 {[%emt 0:00:42]} Ncd6 {[%emt 0:00:46]} 26. Rc1 {[%emt 0:05:16]} Rd7 {[%emt 0:02:02]} 27. g4 {[%emt 0:02:55][%mdl 1024] White has compensation.} Nd4 {[%emt 0:01:47]} 28. Be3 {[%emt 0:01:03] A strong pair of Bishops.} N6b5 {[%emt 0:03:24] [#] Hoping for ...Ne2+.} 29. Kg2 {[%emt 0:01:57]} Rd6 {[%emt 0:00:21]} 30. Bb7 {[%emt 0:02:42]} a5 {[%emt 0:01:30]} 31. Rc4 {[%emt 0:02:25]} Nb3 {[%emt 0:00:46]} 32. Bc6 {[%emt 0:01:01]} N5d4 {[%emt 0:00:49]} 33. Ba4 {[%emt 0:00:16] [#] Rc3 is the strong threat.} c6 $2 {[%emt 0:00:44][%mdl 8192]} (33... c5 $11) 34. Rc3 $18 {[%emt 0:00:14]} Na1 {[%emt 0:00:28][%mdl 32768] Weighted Error Value: White=0.09 (flawless) /Black=0.29 (precise) . An unexpected result.} 1/2-1/2

[Event "Slovakia Open 2022"]
[Site "Bratislava"]
[Date "2022.10.02"]
[Round "8.15"]
[White "Panko, Radoslav"]
[Black "Krajnak, Robert"]
[Result "1/2-1/2"]
[ECO "A45"]
[WhiteElo "1996"]
[BlackElo "1931"]
[Annotator "TA"]
[PlyCount "127"]
[EventDate "2022.09.30"]
[EventCountry "SVK"]
[SourceTitle "playchess.com"]
[Source "ChessBase"]
[SourceQuality "1"]
[TimeControl "2700+10"]

{[%evp 9,127,44,41,50,38,28,69,67,77,67,79,69,88,78,82,59,70,66,83,64,83,58,165,156,161,93,103,68,100,59,106,64,253,152,164,152,233,54,156,134,169,89,86,104,297,-27,-33,-132,160,170,146,141,125,60,122,34,160,152,181,106,109,94,175,177,202,192,238,233,229,187,197,174,182,113,187,187,176,175,160,104,105,94,97,88,76,77,54,58,97,38,35,38,45,13,10,8,56,58,77,0,10,10,10,12,13,-8,13,0,0,-8,0,0,0,-29972,-29973,-29972,-29972,-29970,-29965,-6099]} 1. d4 {[%emt 0:05:14]} Nf6 {[%emt 0:00:31]} 2. Bg5 {[%emt 0:00:10]} c5 {[%emt 0:00:48]} 3. d5 {[%emt 0:00:02]} e5 {[%emt 0:01:31]} 4. Nc3 {[%emt 0:00:55]} d6 {[%emt 0:00:35]} 5. e4 {[%emt 0:00:12]} Be7 {[%emt 0:00:07][%cal Of6d5]} 6. Nf3 {[%emt 0:02:03] A45: Trompowsky Attack.} O-O {[%emt 0:00:48]} 7. h3 {[%emt 0:05:41] [#]} Re8 $146 {[%emt 0:01:19]} ({Predecessor:} 7... Ne8 8. Bxe7 Qxe7 9. Bd3 a6 10. a4 b6 11. O-O g6 12. Nd2 Ng7 13. Nc4 Nd7 {½-½ (59) Voros,G (2202)-Packa,L (2108) Slovakia 2020}) 8. a4 {[%emt 0:00:42] White is slightly better.} Nfd7 {[%emt 0:01:08]} 9. Bxe7 {[%emt 0:03:32]} Qxe7 {[%emt 0:00:06]} 10. Nd2 {[%emt 0:00:08]} Nf8 {[%emt 0:00:27]} 11. Bb5 {[%emt 0:01:33]} Rd8 {[%emt 0:01:40]} 12. a5 {[%emt 0:00:45]} Ng6 {[%emt 0:00:30]} 13. h4 {[%emt 0:02:24][%cal Bh3h4,Bh4h5][%mdl 32]} Na6 {[%emt 0:01:55]} 14. h5 {[%emt 0:01:46]} Nf8 {[%emt 0:00:05]} 15. Nc4 {[%emt 0:00:45]} f5 {[%emt 0:01:14]} ({Better is} 15... h6 $14) 16. exf5 {[%emt 0:00:23]} Bxf5 {[%emt 0:00:10]} 17. Ne3 {[%emt 0:00:05]} (17. Bxa6 $18 bxa6 18. g4) 17... Bc8 $16 {[%emt 0:00:18]} 18. Ne4 {[%emt 0:01:15]} Nc7 {[%emt 0:01:04]} 19. Bd3 {[%emt 0:05:22]} Ne8 {[%emt 0:01:14]} (19... h6 $1 $14) 20. Qf3 {[%emt 0:07:07] White is much more active.} Qf7 $2 {[%emt 0:01:06]} (20... h6 $1 $14) 21. Qg3 {[%emt 0:01:52]} Nf6 {[%emt 0:03:16]} 22. Ng5 {[%emt 0:02:35]} Qc7 {[%emt 0:05:36]} (22... Qe7 $16) 23. Bf5 $2 {[%emt 0:00:49]} (23. h6 $18) 23... Bxf5 {[%emt 0:03:55]} (23... h6 $1 $14) 24. Nxf5 {[%emt 0:00:02][%cal Of5h6]} Kh8 {[%emt 0:00:10]} 25. Ne6 {[%emt 0:01:38]} (25. Qf3 $18) 25... Nxe6 {[%emt 0:00:31]} 26. dxe6 $40 {[%emt 0:00:02][%mdl 128] And now e7 would win. Black is in trouble.} Rg8 $2 {[%emt 0:01:01]} (26... Rf8 $16) 27. Nh4 $2 {[%emt 0:00:49]} (27. O-O-O $18) 27... Rge8 $11 {[%emt 0:02:14]} (27... Nxh5 28. Ng6+ $1 {[%mdl 512]} hxg6 29. Qxg6) 28. e7 {[%emt 0:00:48]} (28. Qh3 $15) 28... Rxe7 $2 {[%emt 0:01:14][%mdl 8192] [#]} (28... Qxe7 $17 {stays on course. aiming for ...d5.} 29. O-O-O Qd7) 29. Ng6+ $1 $16 {[%emt 0:00:07][%mdl 512]} Kg8 {[%emt 0:00:02]} (29... hxg6 30. hxg6+) 30. Nxe7+ {[%emt 0:00:21]} Qxe7 {[%emt 0:00:02]} 31. c4 {[%emt 0:00:47]} (31. h6 $16) 31... Qf7 {[%emt 0:00:23]} (31... h6 $1 $14) 32. b3 {[%emt 0:00:09]} (32. h6 $16) 32... d5 {[%emt 0:00:56]} (32... Nxh5 $14 33. Qh4 (33. Qd3 Rf8 $11) 33... Nf6) 33. cxd5 {[%emt 0:00:09]} ({Don't go for} 33. Qxe5 $2 Re8 34. Qxe8+ Qxe8+ $19) 33... Nxd5 {[%emt 0:00:20]} 34. Qh4 {[%emt 0:00:24]} (34. h6 $18) 34... Nf4 {[%emt 0:00:26] [#]} 35. O-O {[%emt 0:00:11]} Nxh5 {[%emt 0:00:29]} (35... Ne2+ $16 {keeps fighting.} 36. Kh2 Re8) 36. Qc4 $18 {[%emt 0:00:02]} Rc8 {[%emt 0:03:04]} 37. Rfe1 {[%emt 0:00:11]} Qxc4 {[%emt 0:01:57]} (37... Re8 {might work better.} 38. Qxc5 e4) 38. bxc4 {[%emt 0:00:01][%mdl 4096] Endgame KRR-KRN} Re8 {[%emt 0:00:15]} 39. Rad1 {[%emt 0:00:02][%mdl 1024] Threatens to win with Rd7. White has strong compensation.} Nf6 {[%emt 0:00:36] Against Rd7} 40. f3 {[%emt 0:00:31]} Kf7 {[%emt 0:00:01]} 41. Kf2 {[%emt 0:00:03]} (41. Rb1 $18) 41... e4 {[%emt 0:02:13]} (41... Ke6 $16 {was worth a try.}) 42. Rb1 {[%emt 0:00:09]} Re7 {[%emt 0:00:14]} 43. Rb5 {[%emt 0:00:06]} Rc7 {[%emt 0:00:58]} 44. fxe4 {[%emt 0:00:07]} ({White should try} 44. f4) 44... Ke6 {[%emt 0:00:01]} 45. Kf3 {[%emt 0:00:06]} Nd7 {[%emt 0:00:28]} 46. Reb1 {[%emt 0:00:17]} b6 {[%emt 0:00:25]} 47. axb6 {[%emt 0:00:08]} axb6 {[%emt 0:00:02]} 48. Kf4 {[%emt 0:00:13]} Rc8 {[%emt 0:00:03]} 49. Ra1 {[%emt 0:00:19]} ({White should play} 49. Rxb6+ $16 Nxb6 50. Rxb6+ Kf7 51. g4) 49... Rf8+ $14 {[%emt 0:00:10]} 50. Ke3 {[%emt 0:00:03]} Rf6 {[%emt 0:00:36]} 51. Ra7 {[%emt 0:00:13]} Rg6 {[%emt 0:00:09]} 52. Rb2 {[%emt 0:00:11]} Rg3+ {[%emt 0:01:08]} (52... h5 $11 {might be stronger.}) 53. Kf4 {[%emt 0:00:12]} Rc3 {[%emt 0:00:09]} 54. Rb7 {[%emt 0:00:15]} (54. Rd2 $16 Nf6 55. Rb2) 54... Rxc4 {[%emt 0:00:33]} 55. Rd2 {[%emt 0:00:10]} Rd4 {[%emt 0:00:05]} 56. Rxd4 {[%emt 0:00:12]} cxd4 $11 {[%emt 0:00:02][%cal Bc5d4,Bd4d3,Bd3d2][%mdl 32] KR-KN} 57. e5 {[%emt 0:00:10]} h6 {[%emt 0:00:40]} 58. g4 {[%emt 0:00:10]} g6 {[%emt 0:00:09]} (58... Nxe5 $2 59. Rxb6+ Kd5 60. Rb5+ Kc6 61. Rxe5 $18) 59. Kg3 {[%emt 0:00:10]} h5 {[%emt 0:00:29]} 60. gxh5 {[%emt 0:00:04]} gxh5 {[%emt 0:00:01] ...h4+ is the strong threat.} 61. Kh4 $2 {[%emt 0:00:03][%mdl 8192]} (61. Kf4 $11) 61... d3 {[%emt 0:00:13] Black mates.} 62. Ra7 {[%emt 0:00:10]} d2 {[%emt 0:00:04]} 63. Ra1 {[%emt 0:00:07]} Nxe5 {[%emt 0:00:09]} 64. Kxh5 {[%emt 0:00:19][%mdl 32768] Quite a comeback for Black.  Weighted Error Value: White=0.46/Black=0.38. An unexpected result.} 1/2-1/2